[Event "Prague Festival Future 2020"]
[Site "Prague"]
[Date "2020.02.21"]
[Round "9.4"]
[White "Klimkowski, Jan"]
[Black "Aydin, Gulenay"]
[Result "1-0"]
[ECO "C92"]
[WhiteElo "2229"]
[BlackElo "1964"]
[Annotator "NA"]
[PlyCount "77"]
[EventDate "2020.02.12"]
[EventType "tourn"]
[EventCountry "CZE"]
[SourceTitle "playchess.com"]
[Source "ChessBase"]
[SourceQuality "1"]
[TimeControl "40/5400+30:1800+30"]

1. e4 {[%emt 0:00:00]} e5 {[%emt 0:00:00]} 2. Nf3 {[%emt 0:00:00]} Nc6 {[%emt 0:00:00]} 3. Bb5 {[%emt 0:00:00]} a6 {[%emt 0:00:00]} 4. Ba4 {[%emt 0:00:00]} Nf6 {[%emt 0:00:00]} 5. O-O {[%emt 0:00:00]} Be7 {[%emt 0:00:00]} 6. Re1 {[%emt 0:00:05]} b5 {[%emt 0:00:11]} 7. Bb3 {[%emt 0:00:04]} d6 {[%emt 0:00:15]} 8. c3 {[%emt 0:00:11]} O-O {[%emt 0:00:46]} 9. h3 {[%emt 0:00:06]} Bb7 {[%emt 0:00:12]} 10. d4 {[%emt 0:01:52]} Nd7 {[%emt 0:00:54]} 11. Nbd2 {[%emt 0:01:20]} exd4 {[%emt 0:00:47] C92: Closed Ruy Lopez: 9...Be6, Karpov and Flohr-Zaitsev Variations.} 12. cxd4 {[%emt 0:01:44]} Re8 {[%emt 0:00:22]} 13. Nf1 {[%emt 0:00:49]} Na5 {[%emt 0:01:11]} 14. Bc2 {[%emt 0:01:27]} Bf6 {[%emt 0:00:16]} 15. Ng3 {[%emt 0:00:40]} g6 {[%emt 0:00:23]} 16. b3 {[%emt 0:02:38]} c5 {[%emt 0:03:29]} 17. Bb2 {[%emt 0:01:01]} Nc6 {[%emt 0:00:50]} 18. Qd2 {[%emt 0:02:25] [#]} Qc7 $146 {[%emt 0:12:00]} ({Predecessor:} 18... Rc8 19. Rad1 cxd4 20. Bb1 Be5 21. Nxd4 Qf6 22. Nge2 Nc5 23. f3 Ne6 24. Nxe6 Bxb2 {½-½ (41) Jansa,V (2450)-Krejci,J (2582) Ostrava 2018}) 19. Rac1 {[%emt 0:03:14]} Rad8 {[%emt 0:08:34]} 20. Bb1 {[%emt 0:02:24]} Qb6 {[%emt 0:04:50]} 21. dxc5 {[%emt 0:06:26]} dxc5 {[%emt 0:01:35] [#]} 22. Bxf6 $1 {[%emt 0:00:14]} Nxf6 {[%emt 0:00:12]} 23. Qg5 {[%emt 0:00:51]} Nd7 {[%emt 0:09:06]} 24. e5 {[%emt 0:10:27]} Nd4 {[%emt 0:07:59]} 25. Nxd4 $18 {[%emt 0:02:03]} cxd4 {[%emt 0:01:10]} 26. e6 {[%emt 0:12:40]} Rxe6 {[%emt 0:12:47]} 27. Rxe6 {[%emt 0:01:36]} fxe6 {[%emt 0:00:06]} 28. Qe7 {[%emt 0:00:34]} d3 {[%emt 0:12:07]} 29. Nh5 {[%emt 0:06:12]} gxh5 {[%emt 0:04:31]} 30. Bxd3 {[%emt 0:00:10]} e5 {[%emt 0:17:57]} 31. Bxh7+ {[%emt 0:01:29]} Kh8 {[%emt 0:00:01]} 32. Bf5 {[%emt 0:02:33]} Nf8 {[%emt 0:02:04]} 33. Rc7 {[%emt 0:01:32]} Rd1+ {[%emt 0:01:04]} 34. Kh2 {[%emt 0:00:05]} Qh6 {[%emt 0:00:18]} 35. Qxe5+ {[%emt 0:00:07]} Kg8 {[%emt 0:00:03]} 36. Rxb7 {[%emt 0:00:25]} Rd6 {[%emt 0:00:37]} 37. Be4 {[%emt 0:03:15]} Rf6 {[%emt 0:00:38]} 38. Bd5+ {[%emt 0:00:16]} Kh8 {[%emt 0:00:15]} 39. Rf7 {[%emt 0:00:12]} 1-0

[Event "Prague Festival Future 2020"]
[Site "Prague"]
[Date "2020.02.21"]
[Round "9.5"]
[White "Kanov, Nikola"]
[Black "Brozka, Karel"]
[Result "1-0"]
[ECO "C02"]
[WhiteElo "2129"]
[BlackElo "2045"]
[Annotator "ChessBase"]
[PlyCount "137"]
[EventDate "2020.02.12"]
[EventType "tourn"]
[EventCountry "CZE"]
[SourceTitle "playchess.com"]
[Source "ChessBase"]
[SourceQuality "1"]
[TimeControl "40/5400+30:1800+30"]

1. e4 {[%emt 0:00:00]} e6 {[%emt 0:00:00]} 2. d4 {[%emt 0:00:04]} d5 {[%emt 0:00:00]} 3. e5 {[%emt 0:00:39]} c5 {[%emt 0:00:15]} 4. c3 {[%emt 0:00:16]} Qb6 {[%emt 0:00:30]} 5. Nf3 {[%emt 0:00:44]} Nc6 {[%emt 0:00:25]} 6. Be2 {[%emt 0:00:59]} Nh6 {[%emt 0:01:58]} 7. Bxh6 {[%emt 0:02:46]} gxh6 {[%emt 0:00:41]} 8. Qd2 {[%emt 0:02:00]} Bd7 {[%emt 0:03:00]} 9. O-O {[%emt 0:01:33]} cxd4 {[%emt 0:01:56]} 10. cxd4 {[%emt 0:00:35]} Rc8 {[%emt 0:01:13]} 11. Nc3 {[%emt 0:05:58]} Bg7 {[%emt 0:08:54]} 12. Rac1 {[%emt 0:10:25]} O-O {[%emt 0:04:56]} 13. Na4 {[%emt 0:22:37]} Qa5 {[%emt 0:09:23]} 14. Qxa5 {[%emt 0:01:38]} Nxa5 {[%emt 0:00:01]} 15. Nc5 {[%emt 0:00:19]} Bc6 {[%emt 0:03:06]} 16. Rc3 {[%emt 0:12:52]} Nc4 {[%emt 0:15:38]} 17. b3 {[%emt 0:02:48]} Nb6 {[%emt 0:02:46]} 18. Rfc1 {[%emt 0:00:57]} Nd7 {[%emt 0:00:59]} 19. Nd3 {[%emt 0:01:29]} Nb6 {[%emt 0:03:00]} 20. h3 {[%emt 0:02:39]} Bb5 {[%emt 0:02:46]} 21. Nf4 {[%emt 0:03:28]} Bxe2 {[%emt 0:00:52]} 22. Nxe2 {[%emt 0:00:12]} Rxc3 {[%emt 0:00:41]} 23. Rxc3 {[%emt 0:00:08]} Rc8 {[%emt 0:00:10]} 24. Rxc8+ {[%emt 0:00:15]} Nxc8 {[%emt 0:00:01]} 25. Nf4 {[%emt 0:00:11]} Nb6 {[%emt 0:02:28]} 26. Kf1 {[%emt 0:01:20]} Kf8 {[%emt 0:00:30]} 27. Nh5 {[%emt 0:00:41]} Nd7 {[%emt 0:03:23]} 28. Nh2 {[%emt 0:02:35]} f6 {[%emt 0:07:52]} 29. f4 {[%emt 0:00:44]} Kf7 {[%emt 0:06:23]} 30. g4 {[%emt 0:00:51]} a6 {[%emt 0:07:25]} 31. Nf3 {[%emt 0:04:34]} Bh8 {[%emt 0:04:55]} 32. Ke2 {[%emt 0:00:44]} b6 {[%emt 0:00:23]} 33. h4 {[%emt 0:00:53]} a5 {[%emt 0:00:24]} 34. Kd3 {[%emt 0:01:45]} b5 {[%emt 0:02:54]} 35. a3 {[%emt 0:08:09]} Ke7 {[%emt 0:00:39]} 36. Kc3 {[%emt 0:03:26]} Kf7 {[%emt 0:02:33]} 37. a4 {[%emt 0:01:08]} b4+ {[%emt 0:01:17]} 38. Kd3 {[%emt 0:00:31]} Ke7 {[%emt 0:00:25]} 39. Ke3 {[%emt 0:00:29]} Kf7 {[%emt 0:04:13]} 40. Ne1 {[%emt 0:00:00]} Nb8 {[%emt 0:00:00]} 41. Nd3 {[%emt 0:06:00]} Nc6 {[%emt 0:03:14]} 42. Nc5 {[%emt 0:02:40]} Ke7 {[%emt 0:02:38]} 43. Kd3 {[%emt 0:04:30]} Kf7 {[%emt 0:04:55]} 44. Ng3 {[%emt 0:03:41]} Ke7 {[%emt 0:01:24]} 45. Ke3 {[%emt 0:00:27]} Bg7 {[%emt 0:01:20]} 46. Nh5 {[%emt 0:02:01]} Bh8 {[%emt 0:00:12]} 47. Kd3 {[%emt 0:00:10]} Kf7 {[%emt 0:02:04]} 48. Ng3 {[%emt 0:00:08]} Ke7 {[%emt 0:00:31]} 49. Ke3 {[%emt 0:05:48]} Bg7 {[%emt 0:00:58]} 50. g5 {[%emt 0:01:30]} f5 {[%emt 0:08:24]} 51. Nh5 {[%emt 0:00:18]} Bh8 {[%emt 0:01:02]} 52. gxh6 {[%emt 0:02:12]} Nd8 {[%emt 0:02:05]} 53. Ng3 {[%emt 0:07:53]} Kf7 {[%emt 0:01:02]} 54. h5 {[%emt 0:02:37]} Ke7 {[%emt 0:01:02]} 55. Ne2 {[%emt 0:00:32]} Nf7 {[%emt 0:00:45]} 56. Nc1 {[%emt 0:00:54]} Nxh6 {[%emt 0:01:19]} 57. N1d3 {[%emt 0:00:12]} Nf7 {[%emt 0:00:28]} 58. Nb7 {[%emt 0:00:48]} Kd7 {[%emt 0:01:55]} 59. Nxa5 {[%emt 0:00:54]} Kc7 {[%emt 0:00:31]} 60. Nxb4 {[%emt 0:00:29]} Nd8 {[%emt 0:00:38]} 61. Nd3 {[%emt 0:00:14]} Kb6 {[%emt 0:00:12]} 62. b4 {[%emt 0:00:00]} h6 {[%emt 0:00:15]} 63. Nc5 {[%emt 0:01:09]} Bg7 {[%emt 0:00:19]} 64. Kd3 {[%emt 0:00:45]} Kc7 {[%emt 0:00:22]} 65. Nab7 Nxb7 {[%emt 0:00:51]} 66. Nxe6+ {[%emt 0:00:39]} Kd7 {[%emt 0:00:08]} 67. Nxg7 {[%emt 0:00:02]} Ke7 {[%emt 0:00:16]} 68. Nxf5+ {[%emt 0:00:02]} Ke6 {[%emt 0:00:07]} 69. Ne3 {[%emt 0:00:17]} 1-0